{"text_format":"1","workbook":"xlsx","n_sheets":3,"sheets":["DEP 2023","Hoja2","D1"],"not_rendered":{"charts":0,"images":2,"macros":1,"external_links":2,"defined_names":3,"comments":0,"pivot_tables":0},"unopened":[],"bounds":{"document_bytes":16777216,"sheet_cells":100000,"rows_first":2000,"rows_last":500,"rows_between":2000,"halvings":0,"cell_chars":16384,"cell_head_chars":4096},"cells_cut":0,"cells_raw":0,"read":"whole","date_system":"1900"}

{"sheet":"DEP 2023","index":0,"n_rows":146,"n_cols":13,"rows_kept":146,"cut":false,"hidden":false,"merged":[[123,2,123,3],[124,1,124,3],[106,4,106,9],[51,4,51,6],[52,4,52,6],[121,2,121,3],[108,1,114,1],[108,2,108,3],[109,2,109,3],[110,2,110,3],[111,2,111,3],[112,2,112,3],[113,2,113,3],[101,1,101,10],[102,1,102,10],[115,1,121,1],[115,2,115,3],[116,2,116,3],[117,2,117,3],[118,2,118,3],[119,2,119,3],[120,2,120,3],[19,4,19,13],[20,4,20,13],[21,4,21,13],[22,4,22,13],[23,5,23,6],[23,8,23,9],[50,4,50,6],[34,1,36,15],[26,3,27,13],[23,11,23,13],[48,1,48,15],[50,7,50,8],[50,1,50,3],[83,1,83,5],[53,1,53,3],[54,1,54,3],[55,1,55,3],[54,7,54,8],[55,7,55,8],[53,4,53,6],[54,4,54,6],[55,4,55,6],[58,12,58,13],[28,3,29,13],[30,3,31,13],[57,1,57,15],[76,1,81,15],[16,10,16,11],[16,1,16,2],[16,6,16,7],[106,1,107,3],[58,2,58,11],[63,1,63,11],[38,1,38,15],[39,1,46,15],[66,1,66,15],[67,1,73,15],[75,1,75,15],[51,1,51,3],[52,1,52,3],[52,7,52,8],[53,7,53,8],[98,1,98,10],[99,1,99,10],[100,1,100,10],[98,11,98,12],[99,11,99,12],[100,11,100,12],[86,1,86,5],[96,1,96,15],[51,7,51,8],[0,1,0,15],[1,1,1,15],[4,1,4,15],[12,12,12,15],[6,1,6,15],[12,1,12,3],[12,4,12,7],[13,1,13,3],[13,4,13,7],[12,8,12,11],[13,8,13,11],[8,11,8,15],[8,6,8,10],[8,1,8,5],[9,1,9,5],[9,6,9,10],[9,11,9,15],[3,1,3,15],[13,12,13,15],[145,3,145,4],[145,6,145,8],[104,1,104,12],[101,11,101,12],[102,11,102,12],[63,12,63,13],[59,12,59,13],[60,12,60,13],[61,12,61,13],[62,12,62,13],[59,2,59,11],[60,2,60,11],[61,2,61,11],[62,2,62,11],[128,1,135,15],[145,1,145,2],[140,2,140,14],[141,2,141,14],[137,1,137,15],[142,2,142,14],[114,2,114,3],[145,10,145,12],[122,1,123,1],[122,2,122,3]]}
[null,"MINISTERIO DE HACIENDA Y CREDITO PUBLICO "]
[null,"DIRECCION GENERAL DE INVERSION PUBLICA "]
[]
[null,"DOCUMENTO EJECUTIVO DE PROYECTO (DEP) PARA EJECUCIÓN"]
[null,"MONTOS <= 700,000 USD"]
[]
[null,"I.   DATOS GENERALES"]
[null,"1.1. NOMBRE DEL PROYECTO"]
[null,"PROCESO",null,null,null,null,"OBJETO",null,null,null,null,"LOCALIZACIÓN"]
[]
[]
[null,"1.2. INSTITUCION PROPONENTE  Y MONTO "]
[null,"NOMBRE ",null,null,"SECTOR",null,null,null,"SUB-SECTOR",null,null,null,"MONTO DE INVERSION (USD)"]
[]
[]
[null,"1.3. PERIODO DE INVERSIÓN"]
[null,"Fecha de inicio",null,null,null,null,"Fecha de finalización",null,null,null,"Fecha de operación"]
[]
[null,"1.4. UBICACIÓN GEOGRÁFICA"]
[null,"Departamento/Región "]
[null,"Municipio "]
[null,"Distrito"]
[null,"Comarca "]
[null,"Coordenadas UTM - WGS84 y cota",null,null,"(X):",null,null,"(Y):",null,null,"Cota (msnm):"]
[]
[null,"1.5. ALINEAMIENTO CON PLAN NACIONAL DE LUCHA CONTRA LA POBREZA Y PARA EL DESARROLLO HUMANO"]
[null,"Lineamiento Nacional"]
[]
[null,"Política Nacional"]
[]
[null,"Eje de Trabajo"]
[]
[]
[null,"1.6. OBJETIVO GENERAL"]
[]
[]
[]
[]
[null,"1.7 DESCRIPCION DE LA SITUACIÓN ACTUAL DEL SERVICIO"]
[]
[]
[]
[]
[]
[]
[]
[]
[]
[null,"1.8 ¿EL AREA DONDE SE UBICA EL PROYECTO HA SIDO AFECTADA POR ALGUN DESASTRE?"]
[]
[null,"Amenaza",null,null,"Exposición",null,null,"Vulnerabilidad"]
[]
[]
[]
[]
[]
[]
[null,"1.9 MEDIDAS CONSIDERADAS EN EL PROYECTO PARA REDUCIR EL RIESGO DE DESASTRE"]
[null,"Medidas ","Descripción",null,null,null,null,null,null,null,null,null,"MONTO USD"]
[null,"Medida 1: "]
[null,"Medida 2: "]
[null,"Medida 3: "]
[null,"Medida 4: "]
[null,"TOTAL",null,null,null,null,null,null,null,null,null,null,{"$f":"SUM(M60:N63)","v":0}]
[]
[]
[null,"1.10 DESCRIPCION DEL ALCANCE DEL PROYECTO"]
[]
[]
[]
[]
[]
[]
[]
[]
[null,"1.11 DESCRIPCION DE LOS BENEFICIOS ESPERADOS"]
[]
[]
[]
[]
[]
[]
[]
[null,"Beneficiarios del Proyecto al Primer Año de Operación",null,null,null,null,null,"TOTAL",null,"Hombres",null,"Mujeres"]
[null,null,null,null,null,null,null,"DIRECTOS"]
[null,null,null,null,null,null,null,"INDIRECTOS"]
[null,"1.12 COSTOS DEL PROYECTO"]
[null,"Categorías",{"$f":"+D17","v":0},{"$f":"+C88+1","v":1},{"$f":"+D88+1","v":2},"Total"]
[null,"Preinversión",null,null,null,{"$f":"+SUM(C89:E89)","v":0}]
[null,"Infraestructura",null,null,null,{"$f":"+SUM(C90:E90)","v":0}]
[null,"Equipamiento",null,null,null,0]
[null,"Medidas RRD y ACC",null,null,null,0]
[null,"Administración",null,null,null,0]
[null,"Supervisión",null,null,null,0]
[null,"Total",{"$f":"SUM(C89:C94)","v":0},{"$f":"SUM(D89:D94)","v":0},0,{"$f":"+SUM(C95:E95)","v":0}]
[]
[null,"1.13 DESCRIPCIÓN DE LOS ESTUDIOS DE INVERSIÓN "]
[]
[null,"Estudios considerados en el proyecto para su ejecución",null,null,null,null,null,null,null,null,null,"MONTO (USD)"]
[]
[]
[]
[null,"TOTAL",null,null,null,null,null,null,null,null,null,{"$f":"SUM(M100:M102)","v":0}]
[]
[null,"1.14 COSTOS DE OPERACIÓN Y MANTENIMIENTO CON Y SIN PROYECTO"]
[]
[null,"Costos",null,null,"Años (USD)"]
[null,null,null,null,{"$f":"+M17","v":0},{"$f":"+E108+1","v":1},{"$f":"+F108+1","v":2},3,4,"TOTAL"]
[null,"Sin Proyecto","OPERACIÓN",null,{"$f":"SUM(E110:E113)","v":0},{"$f":"SUM(F110:F113)","v":0},0,0,0,{"$f":"SUM(E109:I109)","v":0}]
[null,null,"Personal",null,null,null,null,null,null,{"$f":"SUM(E110:I110)","v":0}]
[null,null,"Bienes",null,null,null,null,null,null,0]
[null,null,"Servicios",null,null,null,null,null,null,0]
[null,null,"Otros"]
[null,null,"MANTENIMIENTO",null,{"$f":"+E115","v":0},{"$f":"+F115","v":0},0,0,0,0]
[null,null,"Actividades",null,null,null,null,null,null,0]
[null,"Con Proyecto","OPERACIÓN",null,{"$f":"SUM(E117:E120)","v":0},{"$f":"SUM(F117:F120)","v":0},0,0,0,0]
[null,null,"Personal",null,null,null,null,null,null,0]
[null,null,"Bienes",null,null,null,null,null,null,0]
[null,null,"Servicios",null,null,null,null,null,null,0]
[null,null,"Otros",null,null,null,null,null,null,0]
[null,null,"MANTENIMIENTO",null,{"$f":"+E122","v":0},{"$f":"+F122","v":0},0,0,0,0]
[null,null,"Actividades",null,null,null,null,null,null,0]
[null,"Incremental","OPERACIÓN",null,null,null,{"$f":"G116-G109","v":0},0,0,0]
[null,null,"MANTENIMIENTO",null,null,null,{"$f":"G121-G114","v":0},0,0,0]
[null,"TOTAL",null,null,{"$f":"E123+E124","v":0},{"$f":"F123+F124","v":0},0,0,0,0]
[]
[]
[null,"1.15 DESCRIPCIÓN DE LA SITUACION LEGAL DEL TERRENO"]
[]
[]
[]
[]
[]
[]
[]
[]
[]
[null,"1.16 ANEXOS"]
[null,null,"Indicar relación de anexos a adjuntar a la Ficha Técnica."]
[null,null,"1. Fotos de los daños en la infraestructura pública "]
[null,null,"2. Listado de Equipamiento"]
[null,null,"3.  Documento que evidencie estado legal del terreno"]
[null,null,"4. Diseños, planos o información necesaria de anexo para el proyecto."]
[]
[]
[null,"Fecha de elaboración:",null,"XXX",null,"Elaborado Por ","XXXX",null,null,"Revisado Por","XXXX"]

{"sheet":"Hoja2","index":1,"n_rows":19,"n_cols":8,"rows_kept":19,"cut":false,"hidden":true,"merged":[]}
["Procesos","Años","Zona","Opción","Saneamiento","Amenaza","Exposición/Vulnerabilidad","Modalidad de contratación"]
[null,2024,"Urbana","Si","No iniciado","Deslizamiento","Alto","Administración Directa"]
["Adquisición",2025,"Rural","No","En gestión","Inundaciones","Moderado","Por Contrato"]
["Ampliación",2026,null,null,"En gestión avanzada","Sismos","Bajo","Llave en mano"]
["Conservación",2027,null,null,"Registrada","Erupción volcanica"]
["Construcción",2028,null,null,null,"Huracanes"]
["Construcción y equipamiento",2029,null,null,null,"Sequía"]
["Conversión",2030,null,null,null,"Tsunamí"]
["Equipamiento"]
["Explotación"]
["Habilitación"]
["Instalación"]
["Mejoramiento "]
["Mejoramiento y equipamiento"]
["Normalización"]
["Reemplazo "]
["Reemplazo y equipamiento"]
["Rehabilitación"]
["Rehabilitación y equipamiento"]

{"sheet":"D1","index":2,"n_rows":139,"n_cols":23,"rows_kept":139,"cut":false,"hidden":true,"merged":[]}
[]
["Naturaleza","Objeto ","Tipo de intervención no PIP","Servicios a intervenir","Indicador de Brecha","Indicar activo ","Zona","Región","Adjuntó","Nivel de gobierno","GOBIERNO REGINOAL","Grupo Funcional","Estado","Antigüedad","Modalidad de ejecución","Fuente de financiamiento","Mes","Año","Peligros","Medidas de Reducción de Riesgos"]
["CREACION","SERVICIO DE EDUCACIÓN INICIAL","AMPLIACIÓN MARGINAL","SERVICIO DE EDUCACIÓN INICIAL","% locales educativos con educación inicial que contiene capacidad instalada inadecuada ","SI CUENTA","Rural","Costa","Si ","GOBIERNO REGIONAL","GOBIERNO REGIONAL AMAZONAS","0103: EDUCACIÓN INICIAL","REGULAR",1,"ADMINISTRACIÓN DIRECTA","RECURSOS ORDINARIOS",1,2017,"Sismos \u0084 ",null,"ALTA","BAJO ","OPERACIONAL"]
["MEJORAMIENTO","SERVICIO DE EDUCACIÓN PRIMARIA","OPTIMIZACIÓN","SERVICIO DE EDUCACIÓN PRIMARIA","% personas no matriculadas en el nivel inicial respecto a la demanda potencial","NO CUENTA","Urbana","Sierra","No","GOBIERNO NACIONAL","GOBIERNO REGIONAL ANCASH","0104: EDUCACIÓN PRIMARIA\n","MALO",2,"ADMINISTRACIÓN INDIRECTA - POR CONTRATA","RECURSOS DIRECTAMENTE RECAUDADOS ",2,2018,"Tsunamis \u0084 ",null,"BAJA","MODERADO","CAMBIO CLIMÁTICO"]
["RECUPERACIÓN","SERVICIO DE EDUCACIÓN SECUNDARIA","OPTIMIZACIÓN (ADQ. TERRENOS)","SERVICIO DE EDUCACIÓN SECUNDARIA","% locales educativos con educación primaria que contiene capacidad instalada inadecuada ",null,null,"Selva",null,"GOBIERNO LOCAL","GOBIERNO REGIONAL APURIMAC","0105: EDUCACIÓN SECUNDARIA","MUY MALO",3,"ADMINISTRACIÓN INDIRECTA - NÚCLEO EJECUTOR"," RECURSOS POR OPERACIONES OFICIALES DE CREDITO ",3,2019,"Heladas \u0084 ",null,"MEDIA","MAYOR","MERCADO"]
["AMPLIACIÓN","SERVICIO DE EDUCACIÓN BÁSICA ALTERNATIVA","REHABILITACIÓN",null,"% personas no matriculadas en el nivel primaria respecto a la demanda potencial ",null,null,null,null,"MANCOMUNIDAD (GR, GL)","GOBIERNO REGIONAL AREQUIPA","0106: EDUCACIÓN BÁSICA ALTERNATIVA","IRRECUPERABLE",4,"ADMINISTRACIÓN INDIRECTA -OBRA POR IMPUESTOS","DONACIONES Y TRANSFERENCIAS",4,2020,"Erupciones volcánicas \u0084 ",null,null,null,"FINANCIERO"]
["MEJORAMIENTO Y AMPLIACIÓN","","REPOSICIÓN",null,"% locales educativos con educación secundaria que contiene capacidad instalada inadecuada ",null,null,null,null,null,"GOBIERNO REGIONAL AYACUCHO","0107: EDUCACIÓN BÁSICA ESPECIAL",null,5,"ADMINISTRACIÓN INDIRECTA-APP","RECURSOS DETERMINADOS",5,2021,"Sequías \u0084 ",null,null,null,"LEGAL"]
[null,null,null,null,"% personas no matriculadas en el nivel Secundaria respecto a la demanda potencial ",null,null,null,null,null,"GOBIERNO REGIONAL CAJAMARCA",null,null,6,null,null,6,2022,"Granizadas \u0084 "]
[null,null,null,null,null,null,null,null,null,null,"GOBIERNO REGIONAL CALLAO",null,null,7,null,null,7,2023,"Inundaciones"]
["Inicial",null,null,null,null,null,null,null,null,null,"GOBIERNO REGIONAL CUSCO",null,null,8,null,null,8,2024,"Huaycos","operacional, contexto de cambio climático, mercado, financiero, legal"]
["Primaria",null,null,null,null,null,null,null,null,null,"GOBIERNO REGIONAL HUANCAVELICA",null,null,9,null,null,9,2025,"Deslizamientos"]
["Secundaria",null,null,null,null,null,null,null,null,null,"GOBIERNO REGIONAL HUÁNUCO",null,null,10,null,null,10,2026,"Desertificación"]
[null,null,null,null,null,null,null,null,null,null,"GOBIERNO REGIONAL ICA",null,null,11,null,null,11,2027,"Salinización de suelos"]
[null,null,null,null,null,null,null,null,null,null,"GOBIERNO REGIONAL JUNÍN",null,null,12,null,null,12,2028]
[null,null,null,null,null,null,null,null,null,null,"GOBIERNO REGIONAL LA LIBERTAD",null,null,13,null,null,null,2029]
[null,null,null,null,null,null,null,null,null,null,"GOBIERNO REGIONAL LAMBAYEQUE",null,null,14,null,null,null,2030]
[null,null,null,null,null,null,null,null,null,null,"GOBIERNO REGIONAL LIMA",null,null,15,null,null,null,2031]
[null,null,null,null,null,null,null,null,null,null,"GOBIERNO REGIONAL LIMA METROPOLITANA",null,null,16,null,null,null,2032]
[null,null,null,null,null,null,null,null,null,null,"GOBIERNO REGIONAL LORETO",null,null,17,null,null,null,2033]
[null,null,null,null,null,null,null,null,null,null,"GOBIERNO REGIONAL MADRE DE DIOS",null,null,18,null,null,null,2034]
[null,null,null,null,null,null,null,null,null,null,"GOBIERNO REGIONAL MOQUEGUA",null,null,19,null,null,null,2035]
[null,null,null,null,null,null,null,null,null,null,"GOBIERNO REGIONAL PASCO",null,null,20,null,null,null,2036]
[null,null,null,null,null,null,null,null,null,null,"GOBIERNO REGIONAL PIURA",null,null,21,null,null,null,2037]
[null,null,null,null,null,null,null,null,null,null,"GOBIERNO REGIONAL PUNO",null,null,22,null,null,null,2038]
[null,null,null,null,null,null,null,null,null,null,"GOBIERNO REGIONAL SAN MARTÍN",null,null,23,null,null,null,2039]
[null,null,null,null,null,null,null,null,null,null,"GOBIERNO REGIONAL TACNA",null,null,24,null,null,null,2040]
[null,null,null,null,null,null,null,null,null,null,"GOBIERNO REGIONAL TUMBES",null,null,25,null,null,null,2041]
[null,null,null,null,null,null,null,null,null,null,"GOBIERNO REGIONAL UCAYALI",null,null,26,null,null,null,2042]
[null,null,"Inversiones de reposición:",null,null,null,null,null,null,null,null,null,null,27,null,null,null,2043]
[null,null,null,null,null,null,null,null,null,null,null,null,null,28,null,null,null,2044]
[null,null,"Reconstrucción total de cerco perimétrico.",null,null,null,null,null,null,null,null,null,null,29,null,null,null,2045]
[null,null,"Reconstrucción total de Aulas colapsadas.",null,null,null,null,null,null,null,null,null,null,30,null,null,null,2046]
[null,null,"Reconstrucción total de Servicios Higiénicos.",null,null,null,null,null,null,null,null,null,null,31,null,null,null,2047]
[null,null,"Reconstrucción total de edificaciones administrativas.",null,null,null,null,null,null,null,null,null,null,32,null,null,null,2048]
[null,null,"Reconstrucción total de patio y/o losa deportiva.",null,null,null,null,null,null,null,null,null,null,33,null,null,null,2049]
[null,null,"Reconstrucción de veredas y/o circulaciones (gradas rampas).",null,null,null,null,null,null,null,null,null,null,34]
[null,null,"Reconstrucción de muro de contención.",null,null,null,null,null,null,null,null,null,null,35]
[null,null,"Reposición de mobiliario educativo (mesas y sillas alumnos y docentes).",null,null,null,null,null,null,null,null,null,null,36]
[null,null,"Reposición de Equipos (computadoras).",null,null,null,null,null,null,null,null,null,null,37]
[null,null,"Reconstrucción de sistema de drenaje pluvial en el local educativo.",null,null,null,null,null,null,null,null,null,null,38]
[null,null,null,null,null,null,null,null,null,null,null,null,null,39]
[null,null,"Inversiones de rehabilitación",null,null,null,null,null,null,null,null,null,null,40]
[null,null,null,null,null,null,null,null,null,null,null,null,null,41]
[null,null,"Reforzamiento de Aulas, que presentan grietas y fisuras en su sistema estructural (columnas, vigas, muros).",null,null,null,null,null,null,null,null,null,null,42]
[null,null,"Reforzamiento de techos de aulas.",null,null,null,null,null,null,null,null,null,null,43]
[null,null,"Reforzamiento de edificaciones administrativas, que presentan grietas y fisuras en su sistema estructural.",null,null,null,null,null,null,null,null,null,null,44]
[null,null,"Rehabilitación de Servicios Higiénicos (redes sanitarias de agua y desagüe, aparatos sanitarios).",null,null,null,null,null,null,null,null,null,null,45]
[null,null,"Rehabilitación del sistema de desagüe en los locales educativos (registros, tuberías, biodigestor).",null,null,null,null,null,null,null,null,null,null,46]
[null,null,"Rehabilitación de las instalaciones eléctricas internas (redes eléctricas, tableros, pozo de tierra).",null,null,null,null,null,null,null,null,null,null,47]
[null,null,"Rehabilitación de carpintería en Aulas (cambio de puertas, cambio de ventanas).",null,null,null,null,null,null,null,null,null,null,48]
[null,null,"Reforzamiento en muros de cerco perimétrico.",null,null,null,null,null,null,null,null,null,null,49]
[null,null,"Reforzamiento en muros de contención.",null,null,null,null,null,null,null,null,null,null,50]
[null,null,"Rehabilitación de veredas y/o circulaciones (gradas rampas).",null,null,null,null,null,null,null,null,null,null,51]
[null,null,"Rehabilitación de sistema de drenaje pluvial en el local educativo.",null,null,null,null,null,null,null,null,null,null,52]
[null,null,"Rehabilitación de coberturas solares.",null,null,null,null,null,null,null,null,null,null,53]
[null,null,null,null,null,null,null,null,null,null,null,null,null,54]
[null,null,null,null,null,null,null,null,null,null,null,null,null,55]
[null,null,null,null,null,null,null,null,null,null,null,null,null,56]
[null,null,null,null,null,null,null,null,null,null,null,null,null,57]
[null,null,null,null,null,null,null,null,null,null,null,null,null,58]
[null,null,null,{"$f":"+E61&F61","v":"SERVICIO DE EDUCACIÓN INICIALCALIDAD"},"SERVICIO DE EDUCACIÓN INICIAL","CALIDAD","% locales educativos con educación inicial que contiene capacidad instalada inadecuada ","-",null,null,null,null,null,59]
[null,null,null,{"$f":"+E62&F62","v":"SERVICIO DE EDUCACIÓN PRIMARIACALIDAD"},"SERVICIO DE EDUCACIÓN PRIMARIA","CALIDAD","% locales educativos con educación primaria que contiene capacidad instalada inadecuada ","-",null,null,null,null,null,60]
[null,null,null,"SERVICIO DE EDUCACIÓN SECUNDARIACALIDAD","SERVICIO DE EDUCACIÓN SECUNDARIA","CALIDAD","% locales educativos con educación secundaria que contiene capacidad instalada inadecuada ","-",null,null,null,null,null,61]
[null,null,null,"SERVICIO DE EDUCACIÓN INICIALCOBERTURA","SERVICIO DE EDUCACIÓN INICIAL","COBERTURA","% personas no matriculadas en el nivel inicial respecto a la demanda potencial","-",null,null,null,null,null,62]
[null,null,null,"SERVICIO DE EDUCACIÓN PRIMARIACOBERTURA","SERVICIO DE EDUCACIÓN PRIMARIA","COBERTURA","% personas no matriculadas en el nivel primaria respecto a la demanda potencial ","-",null,null,null,null,null,63]
[null,null,null,"SERVICIO DE EDUCACIÓN SECUNDARIACOBERTURA","SERVICIO DE EDUCACIÓN SECUNDARIA","COBERTURA","% personas no matriculadas en el nivel Secundaria respecto a la demanda potencial ","-",null,null,null,null,null,64]
[null,null,null,"SERVICIO DE EDUCACIÓN INICIALCOBERTURA","SERVICIO DE EDUCACIÓN INICIAL","COBERTURA","% personas no matriculadas en el nivel inicial respecto a la demanda potencial","-",null,null,null,null,null,65]
[null,null,null,"SERVICIO DE EDUCACIÓN PRIMARIACOBERTURA","SERVICIO DE EDUCACIÓN PRIMARIA","COBERTURA","% personas no matriculadas en el nivel primaria respecto a la demanda potencial ","-",null,null,null,null,null,66]
[null,null,null,"SERVICIO DE EDUCACIÓN SECUNDARIACOBERTURA","SERVICIO DE EDUCACIÓN SECUNDARIA","COBERTURA","% personas no matriculadas en el nivel Secundaria respecto a la demanda potencial ","-",null,null,null,null,null,67]
[null,null,null,"SERVICIO DE EDUCACIÓN INICIALCALIDAD Y COBERTURA","SERVICIO DE EDUCACIÓN INICIAL","CALIDAD Y COBERTURA","% locales educativos con educación inicial que contiene capacidad instalada inadecuada ","% personas no matriculadas en el nivel inicial respecto a la demanda potencial",null,null,null,null,null,68]
[null,null,null,"SERVICIO DE EDUCACIÓN PRIMARIACALIDAD Y COBERTURA","SERVICIO DE EDUCACIÓN PRIMARIA","CALIDAD Y COBERTURA","% locales educativos con educación primaria que contiene capacidad instalada inadecuada ","% personas no matriculadas en el nivel primaria respecto a la demanda potencial ",null,null,null,null,null,69]
[null,null,null,"SERVICIO DE EDUCACIÓN SECUNDARIACALIDAD Y COBERTURA","SERVICIO DE EDUCACIÓN SECUNDARIA","CALIDAD Y COBERTURA","% locales educativos con educación secundaria que contiene capacidad instalada inadecuada ","% personas no matriculadas en el nivel Secundaria respecto a la demanda potencial ",null,null,null,null,null,70]
[null,null,null,null,null,null,null,null,null,null,null,null,null,71]
[null,null,null,null,null,null,null,null,null,null,null,null,null,72]
[null,null,null,null,null,null,null,null,null,null,null,null,null,73]
[null,null,null,"CAUSAS DIRECTAS","CAUSAS INDIRECTAS","MEDIOS FUNDAMENTALES","ACCIONES (PAQUETES DE TRABAJO)","CÓDIGO","N°","PRODUCTO",null,null,null,74]
[null,null,null,"Inadecuada oferta educativa",null,null,"Construcción de ambientes pedagógicos",{"$f":"+MID($G$76,1,2)&0&I77","v":"AC01"},1,"Infraestructura",null,null,null,75]
[null,null,null,"Inadecuada e insuficiente oferta educativa","Infraestructura no cumple con estándares normativos","Infraestructura  cumple con estándares normativos","Construcción de ambientes administrativos","AC02",2,"Infraestructura",null,null,null,76]
[null,null,null,"Limitada oferta educativa","Déficit de infraestructura educativa","Suficiente infraestructura educativa","Construcción de ambientes complementarios","AC03",3,"Infraestructura",null,null,null,77]
[null,null,null,"Inadecuada gestión de los servicios educativos","Equipamiento educativo Inadecuado ","Equipamiento educativo adecuado ","Construcción de ambientes exteriores","AC04",4,"Infraestructura",null,null,null,78]
[null,null,null,"No requiere","Déficit de equipamiento educativo","Suficiente equipamiento educativo","Implementación de TICs","AC05",5,"Infraestructura",null,null,null,79]
[null,null,null,null,"Limitada e inadecuada infraestructura educativa","Suficiente y adecuada infraestructura educativa","Programa de operación y mantenimiento de la infraestructura ","AC06",6,"Infraestructura",null,null,null,80]
[null,null,null,null,"Limitada e inadecuado equipamiento educativo","Suficiente y adecuado equipamiento educativo","Implementación de equipamiento educativo","AC07",7,"Equipamiento",null,null,null,81]
[null,null,null,null,"Déficit de capacidades pedagógicas docente","Adecuadas capacidades pedagógicas docente","Implementación de equipamiento administrativo","AC08",8,"Equipamiento",null,null,null,82]
[null,null,null,null,"Inadecuada gestión de la información educativa (matrícula, indicadores educativos)","Adecuada gestión de la información educativa (matrícula, indicadores educativos)","Programa de operación y mantenimiento del equipamiento","AC09",9,"Equipamiento",null,null,null,83]
[null,null,null,null,"Inadecuada gestión de la información institucional (inventario de equipos, mobiliario, seguimiento desempeño pedagógico,otros)","Adecuada gestión de la información institucional (inventario de equipos, mobiliario, seguimiento desempeño pedagógico,otros)","Capacitación al personal docente","AC010",10,"Capacidades",null,null,null,84]
[null,null,null,null,"No requiere",null,"Protocolo de gestión de información educativa","AC011",11,"Gestión",null,null,null,85]
[null,null,null,null,null,null,"Protocolo de gestión de información institucional","AC012",12,"Gestión",null,null,null,86]
[null,null,null,null,null,null,null,null,null,null,null,null,null,87]
[null,null,null,null,null,null,null,null,null,null,null,null,null,88]
[null,null,null,null,null,"MEDIOS FUNDAMENTALES","ACCIONES (PAQUETES DE TRABAJO)","CÓDIGO","N°","PRODUCTO",null,null,null,89]
[null,null,null,null,null,"Adecuada localización de la IE","Construcción de ambientes pedagógicos",{"$f":"+MID($G$76,1,2)&0&I92","v":"AC01"},1,"Infraestructura",{"$f":"+HLOOKUP($F$77,$F$92:$G$97,1,FALSE)","v":{"$error":"#N/A"}},null,null,90]
[null,null,null,null,null,"Adecuada localización de la IE","Construcción de ambientes administrativos","AC02",2,"Infraestructura",{"$f":"+VLOOKUP($F$77,$F$92:$G$97,3,FALSE)","v":{"$error":"#N/A"}},null,null,91]
[null,null,null,"EFECTOS DIRECTOS","EFECTOS INDIRECTOS","Adecuada localización de la IE","Construcción de ambientes complementarios","AC03",3,"Infraestructura",{"$f":"+VLOOKUP($F$77,$F$92:$G$97,2,FALSE)","v":{"$error":"#N/A"}},null,null,92]
[null,null,null,"Reducido nivel de desempeño del alumno.","Atraso escolar.","Adecuada localización de la IE","Construcción de ambientes exteriores","AC04",4,"Infraestructura",{"$f":"+VLOOKUP($F$77,$F$92:$G$97,2,FALSE)","v":{"$error":"#N/A"}},null,null,93]
[null,null,null,"Ingreso tardío al servicio educativo según nivel educativo.","Aumento de la deserción escolar","Adecuada localización de la IE","Implementación de TICs","AC05",5,"Infraestructura",{"$f":"+VLOOKUP($F$77,$F$92:$G$97,2,FALSE)","v":{"$error":"#N/A"}},null,null,94]
[null,null,null,null,"Reducido logro de aprendizaje de los alumnos.","Adecuada localización de la IE","Programa de operación y mantenimiento de la infraestructura ","AC06",6,"Infraestructura",{"$f":"+VLOOKUP($F$77,$F$92:$G$97,2,FALSE)","v":{"$error":"#N/A"}},null,null,95]
[null,null,null,null,null,null,"Implementación de equipamiento educativo","AC07",7,"Equipamiento",null,null,null,96]
[null,null,"TIPOS DE DOCUMENTOS","INVOLUCRADO","FUENTE",null,"Implementación de equipamiento administrativo","AC08",8,"Equipamiento",null,null,null,"CONTRIBUCIÓN"]
[null,null,"Acta de Compromiso de Operación y Mantenimiento","Dirección Regional de Educación (DRE)","INEI",null,"Programa de operación y mantenimiento del equipamiento","AC09",9,"Equipamiento",null,null,null,98]
[null,null,"Resolución de Alcaldía","Unidad de Gestión Educativa Local (UGEL)","ESCALE",null,"Capacitación al personal docente","AC010",10,"Capacidades",null,null,null,99]
[null,null,"Acuerdo de Concejo Municipal","Gobierno Regional","ENCUESTA DE CAMPO - ADJUNTAR A LA FICHA",null,"Protocolo de gestión de información educativa","AC011",11,"Gestión"]
[null,null,"Acuerdo de Consejo Regional","Gobierno Local","INSTITUCIÓN EDUCATIVA",null,"Protocolo de gestión de información institucional","AC012",12,"Gestión"]
[null,null,"Resolución del Gobierno Regional","Dirección de la IE","UGEL"]
[null,null,"Resolución Ministerial","APAFA","DRE","Infraestructura  cumple con estándares normativos"]
[null,null,"Resolución Directoral","Beneficiarios"]
[null,null,"Otro","Sector Privado"]
[null,null,null,"Otros"]
[]
[]
[]
[]
[]
[null,null,null,null,null,"Suficiente infraestructura educativa"]
[]
[]
[]
[null,null,null,null,null,"Equipamiento educativo adecuado "]
[null,null,null,null,null,"Suficiente equipamiento educativo"]
[null,null,null,null,null,"Suficiente y adecuada infraestructura educativa"]
[null,null,null,null,null,"Suficiente y adecuado equipamiento educativo"]
[null,null,null,null,null,"Adecuadas capacidades pedagógicas docente"]
[null,null,null,null,null,"Adecuada gestión de la información educativa (matrícula, indicadores educativos)"]
[null,null,null,null,null,"Adecuada gestión de la información institucional (inventario de equipos, mobiliario, seguimiento desempeño pedagógico,otros)"]
[]
[]
[]
[]
[null,null,null,"3.7.2. ¿ES LA UNIDAD EJECUTORA DE INVERSIONES LA RESPONSABLE DE LA OPERACIÓN Y MANTENIMIENTO DEL PROYECTO CON CARGO A SU PRESUPUESTO INSTITUCIONAL?"]
[null,null,null,"SI"]
[null,null,null,"NO"]
[null,null,null,"PARCIALMENTE"]
[null,null,null,"NO APLICA"]
[]
[]
[]
[null,null,null,"MARCO LÓGICO"]
[null,null,null,"ACTIVIDADES","INIDICADORES","MEDIOS DE VERIFICACIÓN","SUPUESTOS"]
[null,null,null,"Elaboración y aprobación de "]